bitfinex-derivatives/quotes_SOLF0:USTF0_20240911
["timestamp","ask_amount","ask_price","bid_price","bid_amount"]
[1726075806013,11.61,132.46,132.41,11.61]
[1726075806214,11.61,132.45,132.39,11.61]
[1726075807009,2.4178,132.49,132.36,6.85615146]
[1726075807010,11.61,132.47,132.42,3.7756]
[1726075807216,2.4178,132.49,132.4,11.61]
[1726075807407,15.3844,132.47,132.42,3.7754]
[1726075807915,15.3842,132.47,132.43,3.7752]
[1726075808112,11.61,132.47,132.41,11.61]
[1726075808414,15.3844,132.47,132.42,3.7754]
[1726075808611,11.61,132.47,132.41,11.61]
[1726075808837,3.7747,132.46,132.41,15.3858]
[1726075809444,15.3842,132.47,132.41,11.61]
[1726075810011,3.7746,132.46,132.42,3.7755]
[1726075810209,11.61,132.46,132.36,6.85615146]
[1726075810516,3.7752,132.44,132.39,15.3863]
[1726075810913,3.7754,132.43,132.39,11.61]
[1726075811116,15.3854,132.43,132.39,11.61]
[1726075811320,15.3854,132.43,132.38,3.7767]
[1726075811929,11.61,132.43,132.38,3.7767]
[1726075812123,11.61,132.43,132.39,3.7764]
[1726075812718,15.3853,132.43,132.38,3.7767]
[1726075813415,11.61,132.43,132.39,3.7764]
[1726075814024,15.3854,132.43,132.38,15.3866]
[1726075814421,11.61,132.43,132.38,15.3866]
[1726075814622,15.3855,132.43,132.38,15.3866]
[1726075815017,15.3855,132.43,132.39,3.7764]
[1726075815625,11.61,132.43,132.39,3.7764]
[1726075816220,11.61,132.45,132.4,11.61]
[1726075817026,15.385,132.45,132.41,3.7758]
[1726075817228,11.61,132.45,132.4,11.61]
[1726075818129,3.7751,132.44,132.4,15.386]
[1726075818321,11.61,132.45,132.36,6.85615146]
[1726075818530,11.61,132.45,132.39,11.61]
[1726075818886,11.61,132.45,132.39,15.3863]
[1726075819030,11.61,132.45,132.4,11.61]
[1726075819626,3.7752,132.44,132.4,15.386]
[1726075820628,3.7749,132.45,132.41,3.7759]
[1726075820823,11.61,132.46,132.4,11.61]
[1726075821032,3.7744,132.47,132.42,15.3854]
[1726075821439,11.61,132.48,132.42,15.3854]
[1726075821631,3.7743,132.47,132.43,3.7753]
[1726075822039,3.7743,132.47,132.42,11.61]
[1726075822343,3.77558735,132.5,132.36,6.85615146]
[1726075822344,11.61,132.45,132.36,6.85615146]
[1726075822557,11.61,132.44,132.39,11.61]
[1726075823030,3.7751,132.44,132.4,15.3861]
[1726075823229,11.61,132.45,132.36,6.85615146]
[1726075823432,11.61,132.44,132.38,11.61]
[1726075823629,3.7758,132.42,132.38,3.7766]
[1726075823837,3.79437981,132.43,132.38,11.61]
[1726075824029,15.40437981,132.43,132.38,11.61]
[1726075824339,15.40437981,132.43,132.26,170.41301661]
[1726075824340,11.61,132.39,132.26,170.41301661]
[1726075824534,11.61,132.38,132.32,11.61]
[1726075824733,0.7257,132.42,132.35,11.61]
[1726075824927,11.61,132.41,132.35,11.61]
[1726075825128,12.3357,132.42,132.35,11.61]
[1726075825371,3.7761,132.41,132.36,3.7773]
[1726075825728,3.7761,132.41,132.37,11.61]
[1726075826325,15.3857,132.42,132.37,11.61]
[1726075826831,11.61,132.42,132.37,11.61]
[1726075827034,3.776,132.41,132.37,11.61]
[1726075828675,11.61,132.43,132.38,11.61]
[1726075829031,15.3855,132.43,132.38,15.3866]
[1726075829230,11.61,132.43,132.38,15.3866]
[1726075829638,15.3854,132.43,132.38,15.3866]
[1726075829929,15.3854,132.43,132.39,3.7764]
[1726075830141,3.7754,132.43,132.39,15.3864]
[1726075830440,3.7754,132.43,132.39,11.61]
[1726075830639,3.7756,132.42,132.38,15.3867]
[1726075831141,3.7759,132.41,132.33,4.4761]
[1726075831334,3.7759,132.41,132.35,11.61]
[1726075831734,3.7759,132.41,132.36,3.7771]
[1726075832532,3.7765,132.39,132.35,11.61]
[1726075832741,11.61,132.42,132.35,11.61]
[1726075833242,3.776,132.41,132.36,3.7771]
[1726075833436,11.61,132.42,132.36,3.7771]
[1726075833740,3.776,132.41,132.37,3.777]
[1726075834138,3.776,132.41,132.35,11.61]
[1726075834532,3.7762,132.4,132.36,3.7772]
[1726075834736,11.61,132.42,132.36,3.7772]
[1726075835373,3.7764,132.4,132.36,3.7772]
[1726075835738,3.776,132.41,132.37,11.61]
[1726075836434,11.61,132.42,132.37,11.61]
[1726075836641,11.61,132.41,132.33,4.4761]
[1726075836834,11.61,132.41,132.34,11.61]
[1726075837139,3.7765,132.39,132.34,11.61]
[1726075838140,3.7765,132.39,132.35,3.7774]
[1726075839035,3.777,132.38,132.35,11.61]
[1726075839229,3.80317083,132.43,132.33,4.4761]
[1726075839230,11.61,132.39,132.33,4.4761]
[1726075839436,3.7776,132.36,132.33,4.4761]
[1726075839834,3.7769,132.38,132.33,16.0861]
[1726075840044,0.7262,132.42,132.35,11.61]
[1726075840345,11.61,132.4,132.35,11.61]
[1726075840540,3.777,132.38,132.35,11.61]
[1726075840761,11.61,132.4,132.35,11.61]
[1726075841042,3.7769,132.38,132.35,11.61]
[1726075841248,11.61,132.39,132.33,19.8643]
[1726075841834,11.61,132.39,132.33,2.9782]
[1726075842038,11.61,132.39,132.33,14.5882]
[1726075842553,3.7772,132.37,132.33,18.3664]
[1726075842952,3.7769,132.38,132.34,15.3878]
[1726075843144,3.7769,132.38,132.35,11.61]
[1726075843540,15.39551923,132.41,132.35,11.61]
[1726075844349,3.7769,132.38,132.35,11.61]
[1726075845049,3.7769,132.38,132.35,15.3876]
[1726075846152,11.61,132.42,132.36,11.61]
[1726075846347,3.867896,132.42,132.38,11.61]
[1726075846555,11.61,132.43,132.36,3.7771]
[1726075846741,3.7764,132.4,132.37,11.61]
[1726075847848,3.7764,132.4,132.37,15.387]
[1726075848700,3.7764,132.4,132.37,11.61]
[1726075849757,3.7764,132.4,132.36,3.7772]
[1726075850053,3.7764,132.4,132.37,11.61]
[1726075852361,11.61,132.41,132.34,3.7778]
[1726075852663,11.61,132.41,132.35,11.61]
[1726075853462,3.777,132.38,132.35,11.61]
[1726075853857,3.777,132.38,132.34,3.7777]
[1726075853858,11.61,132.39,132.33,2.9782]
[1726075854158,3.7772,132.37,132.34,11.61]
[1726075854355,11.61,132.39,132.34,11.61]
[1726075854553,3.7774,132.36,132.34,11.61]
[1726075855355,3.7776,132.35,132.34,11.61]
[1726075855971,3.7776,132.35,132.33,14.5882]
[1726075856158,3.7779,132.34,132.33,14.5882]
[1726075856363,3.7779,132.34,132.33,2.9782]
[1726075856563,11.61,132.37,132.33,2.9782]
[1726075856760,3.7778,132.35,132.33,2.9782]
[1726075857256,228.0,132.51,132.34,11.61]
[1726075857459,11.61,132.43,132.36,11.61]
[1726075857762,15.4340583,132.42,132.36,11.61]
[1726075857959,3.75718168,132.41,132.36,11.61]
[1726075858163,11.61,132.42,132.36,11.61]
[1726075858463,3.7764,132.4,132.36,11.61]
[1726075858810,3.7753,132.44,132.39,15.3863]
[1726075858975,3.77985172,132.45,132.39,11.61]
[1726075859166,11.61,132.46,132.39,11.61]
[1726075859367,3.7752,132.44,132.39,15.3864]
[1726075860065,11.61,132.46,132.36,3.74320182]
[1726075860254,11.61,132.46,132.42,11.61]
[1726075860463,228.0,132.57,132.44,11.61]
[1726075860767,11.61,132.49,132.44,11.61]
[1726075860963,15.34706866,132.49,132.44,11.61]
[1726075861355,3.7744,132.47,132.43,11.61]
[1726075862058,3.774,132.48,132.43,11.61]
[1726075862259,15.34706866,132.49,132.43,11.61]
[1726075862464,15.34706866,132.49,132.44,11.61]
[1726075862663,7.51086866,132.49,132.44,15.385]
[1726075862864,11.61,132.5,132.46,11.61]
[1726075863070,3.70043813,132.52,132.47,11.61]
[1726075863279,15.383,132.52,132.47,15.3842]
[1726075863569,19.13366349,132.52,132.47,15.3842]
[1726075864164,3.7731,132.51,132.47,3.7742]
[1726075864567,18.1,132.55,132.49,3.7736]
[1726075864768,3.7725,132.53,132.45,21.78874986]
[1726075864969,3.7725,132.53,132.46,1.4926]
[1726075865271,3.7728,132.52,132.48,3.7737]
[1726075868875,3.7726,132.53,132.49,3.7736]
[1726075869265,3.7726,132.53,132.47,18.1]
[1726075869770,3.101,132.58,132.51,18.1]
[1726075870075,1.6244,132.58,132.53,3.7722]
[1726075870272,19.7244,132.58,132.46,4.6038]
[1726075870624,18.1,132.57,132.48,18.1]
[1726075871171,18.1,132.55,132.47,3.7741]
[1726075871370,3.7736,132.5,132.46,4.6038]
[1726075871769,18.1,132.53,132.46,4.6038]
[1726075872082,3.7733,132.51,132.46,4.6038]
[1726075872173,3.80934051,132.52,132.46,4.6038]
[1726075872582,3.7736,132.5,132.46,4.6038]
[1726075872778,3.7736,132.5,132.47,3.7742]
[1726075874486,3.7745,132.47,132.29,18.58872579]
[1726075874776,18.1,132.49,132.4,18.1]
[1726075874982,18.1,132.49,132.39,1.5481]
[1726075875175,18.1,132.49,132.4,3.7761]
[1726075875477,21.93700113,132.49,132.39,5.35754839]
[1726075875680,18.1,132.47,132.39,1.5481]
[1726075875980,18.1,132.47,132.38,3.7767]
[1726075876181,3.7756,132.43,132.38,3.7767]
[1726075877976,1.5249,132.46,132.37,6.88605789]
[1726075878880,1.5249,132.46,132.37,3.1604]
[1726075879283,3.776,132.41,132.37,1.5371]
[1726075879679,18.1,132.42,132.34,1.5481]
[1726075879879,3.7767,132.39,132.34,1.5481]
[1726075880484,18.1,132.44,132.34,1.5481]
[1726075881481,3.7758,132.42,132.37,3.777]
[1726075881879,3.7758,132.42,132.35,21.1931]
[1726075882187,3.7758,132.42,132.37,3.777]
[1726075882510,3.7755,132.43,132.35,21.1931]
[1726075882575,3.7755,132.43,132.37,18.1]
[1726075882882,3.7757,132.42,132.38,3.7767]
[1726075883284,21.79127609,132.45,132.37,18.1]
[1726075883785,18.1,132.47,132.39,18.1]
[1726075883989,19.5762,132.49,132.39,18.1]
[1726075884192,3.7748,132.45,132.4,3.776]
[1726075884486,3.82555152,132.47,132.4,3.776]
[1726075884686,3.775,132.45,132.4,3.776]
[1726075884986,3.775,132.45,132.41,3.7759]
[1726075886083,19.6935,132.51,132.41,18.1]
[1726075886286,19.6935,132.51,132.42,1.5607]
[1726075886792,3.7744,132.47,132.43,3.7751]
[1726075887391,3.83386219,132.49,132.42,1.5607]
[1726075887778,19.6935,132.51,132.42,1.5607]
[1726075888013,19.5762,132.53,132.43,19.6854]
[1726075888394,23.34224742,132.53,132.44,3.84873886]
[1726075888992,3.774,132.48,132.44,3.84873886]
[1726075889390,3.774,132.48,132.43,19.6854]
[1726075889898,23.34224742,132.53,132.45,3.7745]
[1726075891585,3.774,132.48,132.45,3.7745]
[1726075892699,3.774,132.48,132.44,7.60427574]
[1726075893795,3.7747,132.46,132.43,1.5854]
[1726075893997,18.1,132.51,132.43,1.5854]
[1726075895438,3.7745,132.47,132.43,5.3606]
[1726075895600,18.1,132.51,132.43,1.5854]
[1726075896118,3.7748,132.46,132.43,1.5854]
[1726075896794,3.7751,132.44,132.42,1.5607]
[1726075896995,3.7751,132.44,132.4,1.5288]
[1726075897300,12.78744742,132.53,132.38,1.5947]
[1726075897301,3.72810147,132.46,132.38,1.5947]
[1726075897500,18.1,132.47,132.38,1.5947]
[1726075897700,3.776,132.41,132.38,1.5947]
[1726075898404,3.86517235,132.44,132.35,1.4962]
[1726075898700,18.1,132.43,132.35,1.4962]
[1726075898904,3.7771,132.37,132.35,1.4962]
[1726075900097,3.7776,132.36,132.33,18.1]
[1726075900507,1.6203,132.42,132.33,21.88476356]
[1726075900709,3.7773,132.37,132.33,25.66286356]
[1726075901496,3.7769,132.38,132.34,3.7779]
[1726075902567,1.6203,132.42,132.33,21.88476356]
[1726075902568,3.7772,132.37,132.33,25.66296356]
[1726075902799,3.7769,132.38,132.34,3.7779]
[1726075902997,1.6203,132.42,132.33,21.88476356]
[1726075903205,18.1,132.41,132.3,19.6017]
[1726075903407,19.5773,132.41,132.3,23.2980504]
[1726075904002,3.7776,132.36,132.31,3.7786]
[1726075904198,19.5773,132.41,132.3,19.6017]
[1726075904404,18.1,132.39,132.3,19.6017]
[1726075904604,18.1,132.39,132.3,23.31996477]
[1726075905513,1.52,132.4,132.3,23.31996477]
[1726075905911,3.7771,132.37,132.32,3.7783]
[1726075906512,3.7774,132.36,132.32,3.7783]
[1726075907512,1.52,132.4,132.27,170.41114055]
[1726075907710,18.1,132.39,132.28,22.8438]
[1726075908116,18.1,132.37,132.28,4.7438]
[1726075908417,5.31743684,132.36,132.28,3.1611]
[1726075908615,3.7784,132.33,132.28,3.1611]
[1726075909512,18.1,132.37,132.28,21.2611]
[1726075909708,18.1,132.39,132.3,3.7788]
[1726075910214,3.7778,132.35,132.28,21.2611]
[1726075910413,18.1,132.39,132.29,18.1]
[1726075910608,18.1,132.39,132.3,3.74707404]
[1726075911402,18.1,132.39,132.26,18.1]
[1726075911605,18.1,132.36,132.26,18.1]
[1726075911809,3.7786,132.32,132.28,3.7795]
[1726075912266,21.8637025,132.36,132.26,18.1]
[1726075912403,18.1,132.34,132.25,3.0337]
[1726075912806,1.5635,132.33,132.25,3.0337]
[1726075913009,3.80527367,132.32,132.25,3.0337]
[1726075913206,1.5635,132.33,132.25,1.5208]
[1726075913416,1.5635,132.33,132.29,3.7793]
[1726075913714,5.30263772,132.33,132.25,3.0337]
[1726075914110,3.7787,132.32,132.27,3.7798]
[1726075914307,29.01,132.37,132.26,29.01]
[1726075916517,3.7782,132.34,132.3,3.779]
[1726075917017,3.69906294,132.35,132.26,29.01]
[1726075917214,29.01,132.37,132.29,3.7792]
[1726075918018,29.01,132.37,132.28,3.7794]
[1726075918214,29.01,132.35,132.25,3.0337]
[1726075918420,3.7787,132.32,132.29,3.7793]
[1726075919169,3.7788,132.31,132.28,3.7795]
[1726075919216,3.69170004,132.34,132.28,3.7795]
[1726075919619,3.7787,132.32,132.28,3.7795]
[1726075920016,3.82739374,132.33,132.28,3.7795]
[1726075920217,29.01,132.35,132.28,3.7795]
[1726075920921,3.7786,132.32,132.28,3.7795]
[1726075921915,32.79317044,132.35,132.25,3.0337]
[1726075922213,29.01,132.32,132.21,29.01]
[1726075922419,29.01,132.3,132.21,30.5738]
[1726075922618,1.5844,132.31,132.19,32.72437865]
[1726075922619,29.01,132.28,132.19,32.72437865]
[1726075923019,3.7805,132.25,132.21,3.7813]
[1726075923222,29.01,132.28,132.18,3.141]
[1726075923427,29.01,132.26,132.18,3.141]
[1726075923725,29.01,132.26,132.18,6.9232]
[1726075923924,29.01,132.26,132.17,1.514]
[1726075924118,1.529,132.25,132.17,5.29945998]
[1726075924319,5.3091651,132.25,132.17,1.514]
[1726075924785,3.7813,132.23,132.18,3.7824]
[1726075925227,3.7813,132.23,132.1,3.74253686]
[1726075925228,29.01,132.24,132.1,3.74253686]
[1726075925413,31.9805,132.24,132.12,29.01]
[1726075925719,3.7813,132.23,132.14,29.01]
[1726075926217,3.7814,132.22,132.17,3.7826]
[1726075926412,2.9705,132.24,132.14,29.01]
[1726075927923,3.7812,132.23,132.14,29.01]
[1726075928524,3.7812,132.23,132.18,3.7823]
[1726075928830,3.7814,132.22,132.14,29.01]
[1726075929628,3.7814,132.22,132.16,3.7829]
[1726075929828,3.7817,132.21,132.16,3.7829]
[1726075930227,29.01,132.23,132.14,29.01]
[1726075930424,29.01,132.23,132.11,33.8559]
[1726075930830,3.7818,132.21,132.16,3.7829]
[1726075931132,29.01,132.23,132.16,3.7829]
[1726075931325,29.01,132.23,132.15,3.7832]
[1726075931622,3.7824,132.19,132.15,3.7832]
[1726075931822,29.01,132.23,132.15,3.7832]
[1726075932023,3.7823,132.19,132.15,3.7832]
[1726075932587,29.01,132.23,132.11,33.8559]
[1726075932773,2.9705,132.24,132.15,29.01]
[1726075933030,1.4908,132.24,132.15,29.01]
[1726075933856,3.7812,132.23,132.19,3.7822]
[1726075934223,1.4908,132.24,132.15,29.01]
[1726075934422,1.4908,132.24,132.2,3.7817]
[1726075934932,5.3091651,132.25,132.2,3.7817]
[1726075935136,3.781,132.24,132.2,3.7817]
[1726075935630,3.781,132.24,132.21,3.7816]
[1726075936018,3.7813,132.23,132.15,29.01]
[1726075936221,3.7813,132.23,132.2,3.7818]
[1726075936628,3.7801651,132.25,132.17,3.83587545]
[1726075936935,3.1625,132.28,132.18,3.009]
[1726075937234,3.7806,132.25,132.18,3.009]
[1726075937536,3.1625,132.28,132.18,3.009]
[1726075937728,3.1625,132.28,132.18,4.6433]
[1726075937924,29.01,132.31,132.2,29.01]
[1726075938125,4.6752,132.33,132.18,4.6433]
[1726075938332,18.15,132.29,132.23,3.7809]
[1726075938529,21.94595869,132.29,132.23,3.7809]
[1726075939433,21.94595869,132.29,132.21,3.7814]
[1726075939735,21.94595869,132.29,132.19,18.15]
[1726075940523,21.94595869,132.29,132.23,3.7809]
[1726075941529,3.79595869,132.29,132.25,3.7802]
[1726075941735,18.15,132.31,132.21,18.15]
[1726075941937,3.7794,132.29,132.21,18.15]
[1726075942136,7.58083524,132.29,132.25,3.7803]
[1726075942527,22.8252,132.33,132.23,18.15]
[1726075942730,22.8252,132.33,132.24,5.31110204]
[1726075942930,3.7792,132.3,132.24,5.31110204]
[1726075943131,7.64152174,132.3,132.24,5.31110204]
[1726075943331,7.64152174,132.3,132.26,3.78]
[1726075943526,22.8252,132.33,132.24,1.6148]
[1726075943735,3.7793,132.29,132.24,1.6148]
[1726075944531,3.7793,132.29,132.24,5.33672981]
[1726075944934,3.7793,132.29,132.26,3.7801]
[1726075945130,26.67958003,132.33,132.24,1.6148]
[1726075945333,18.15,132.31,132.24,5.3955]
[1726075945732,18.15,132.31,132.24,1.6148]
[1726075945942,26.67958003,132.33,132.26,3.78]
[1726075946338,26.67958003,132.33,132.24,5.38625976]
[1726075946534,26.67958003,132.33,132.27,3.7797]
[1726075946726,26.67958003,132.33,132.24,19.7648]
[1726075946941,26.67958003,132.33,132.24,1.6148]
[1726075947137,26.67958003,132.33,132.24,5.37340466]
[1726075947336,3.7793,132.3,132.26,3.7801]
[1726075947538,26.67958003,132.33,132.26,3.7801]
[1726075947850,26.67958003,132.33,132.24,1.6148]
[1726075947957,26.67958003,132.33,132.25,3.7803]
[1726075948130,18.15,132.31,132.24,1.6148]
[1726075948844,18.15,132.31,132.24,3.7807]
[1726075949031,18.15,132.31,132.21,18.15]
[1726075949230,18.15,132.31,132.19,1.57]
[1726075949231,18.15,132.29,132.19,19.72]
[1726075949436,3.7804,132.26,132.19,19.72]
[1726075949633,18.15,132.29,132.19,19.72]
[1726075949939,18.15,132.29,132.23,3.781]
[1726075950130,18.15,132.3,132.2,18.15]
[1726075950542,3.7799,132.27,132.23,3.7808]
[1726075951053,3.7799,132.27,132.2,18.15]
[1726075951945,3.7799,132.27,132.23,3.7809]
[1726075952135,3.7802,132.26,132.19,1.57]
[1726075952445,3.7802,132.26,132.22,3.7813]
[1726075952838,18.15,132.3,132.22,3.7813]
[1726075953144,18.15,132.28,132.19,19.72]
[1726075953344,3.7804,132.26,132.19,19.72]
[1726075953547,3.7804,132.26,132.23,3.781]
[1726075953752,3.7804,132.26,132.19,19.72]
[1726075954133,18.15,132.28,132.19,19.72]
[1726075955143,18.15,132.28,132.19,1.57]
[1726075955441,3.7811,132.23,132.19,1.57]
[1726075955649,3.85833444,132.23,132.19,1.57]
[1726075955949,3.7816,132.22,132.19,1.57]
[1726075956146,3.86665307,132.23,132.17,18.15]
[1726075956339,19.7303,132.27,132.17,21.94329783]
[1726075956540,19.7303,132.27,132.18,1.5218]
[1726075957448,19.7303,132.27,132.19,3.7821]
[1726075957651,19.7303,132.27,132.18,1.5218]
[1726075958059,3.7805,132.26,132.21,3.7814]
[1726075958352,3.77733275,132.26,132.18,4.5711]
[1726075958645,3.7815,132.22,132.18,4.5711]
[1726075958955,18.15,132.25,132.18,4.5711]
[1726075959153,3.7814,132.22,132.19,3.782]
[1726075959543,21.95721551,132.25,132.15,18.15]
[1726075959755,3.7815,132.22,132.18,3.7823]
[1726075959953,3.7815,132.22,132.13,18.15]
[1726075960149,21.95721551,132.25,132.15,18.15]
[1726075960345,3.7813,132.23,132.19,3.782]
[1726075960546,7.51891515,132.23,132.19,3.782]
[1726075960854,3.73761515,132.23,132.19,3.782]
[1726075961051,18.15,132.25,132.19,3.782]
[1726075961652,3.7814,132.22,132.19,3.782]
[1726075961847,21.95977334,132.25,132.16,1.5994]
[1726075962248,3.7809,132.24,132.21,3.7816]
[1726075962551,19.7303,132.27,132.18,18.15]
[1726075962749,3.79615485,132.26,132.24,3.7807]
[1726075962950,3.79615485,132.26,132.18,18.15]
[1726075963257,7.57635485,132.26,132.23,3.7808]
[1726075963454,3.79615485,132.26,132.23,3.7808]
[1726075964350,7.57655485,132.26,132.23,3.7808]
[1726075966754,3.7805,132.25,132.22,3.7812]
[1726075968104,7.57645485,132.26,132.23,3.781]
[1726075968855,18.15,132.29,132.2,18.15]
[1726075969045,18.15,132.29,132.21,1.5498]
[1726075969253,3.7797,132.28,132.21,1.5498]
[1726075969455,18.15,132.29,132.21,1.5498]
[1726075970460,3.7811,132.23,132.21,1.5498]
[1726075971757,3.7813,132.22,132.21,1.5498]
[1726075971954,3.74508687,132.26,132.21,1.5498]
[1726075972161,3.7812,132.23,132.21,1.5498]
[1726075972655,3.8760211,132.25,132.21,1.5498]
[1726075972656,3.7813,132.22,132.21,1.5498]
[1726075973358,3.71833321,132.25,132.17,3.0898]
[1726075973554,18.15,132.25,132.17,3.0898]
[1726075973762,3.7821,132.2,132.17,3.0898]
[1726075974264,21.9307277,132.25,132.17,3.0898]
[1726075974851,3.7824,132.19,132.17,3.0898]
[1726075975667,3.782,132.2,132.17,3.0898]
[1726075975967,21.9307277,132.25,132.17,3.0898]
[1726075976565,21.9307277,132.25,132.17,1.5602]
[1726075976960,21.9307277,132.25,132.15,18.15]
[1726075977259,18.15,132.23,132.14,1.6089]
[1726075977566,18.15,132.21,132.14,1.6089]
[1726075977861,18.15,132.21,132.09,3.7849]
[1726075977862,3.7841,132.13,132.09,3.7849]
[1726075978065,18.15,132.19,132.08,21.86812985]
[1726075978268,18.15,132.19,132.08,18.15]
[1726075978469,18.15,132.19,132.12,3.7842]
[1726075978656,18.15,132.19,132.1,18.15]
[1726075978862,22.00583836,132.21,132.12,18.15]
[1726075979056,22.00583836,132.21,132.13,8.49531203]
[1726075979057,3.85583836,132.21,132.13,8.49531203]
[1726075979266,3.85583836,132.21,132.13,4.6966]
[1726075980162,3.7827,132.18,132.14,3.7835]
[1726075984571,3.7828,132.17,132.13,8.4803]
[1726075984770,3.7828,132.17,132.13,4.6966]
[1726075984967,3.7826,132.18,132.14,3.7836]
[1726075985173,18.15,132.21,132.13,4.6966]
[1726075985174,21.88392352,132.21,132.13,4.6966]
[1726075985375,21.88392352,132.21,132.14,18.15]
[1726075985376,3.73392352,132.21,132.14,18.15]
[1726075985671,3.7822,132.19,132.14,18.15]
[1726075985878,18.15,132.22,132.14,18.15]
[1726075986073,3.782,132.2,132.16,3.7828]
[1726075986271,19.7683,132.24,132.14,18.15]
[1726075986570,3.86785897,132.24,132.16,18.15]
[1726075986773,3.7815,132.22,132.18,3.7823]
[1726075986973,3.7259782,132.24,132.16,18.15]
[1726075987174,21.2119,132.26,132.16,18.15]
[1726075987369,21.2119,132.26,132.19,3.782]
[1726075987370,3.7812,132.23,132.19,3.782]
[1726075987874,25.03511382,132.26,132.16,18.15]
[1726075988384,3.7811,132.23,132.18,3.7823]
[1726075988569,25.03511382,132.26,132.16,18.15]
[1726075989078,25.03511382,132.26,132.17,3.7826]
[1726075989395,18.15,132.24,132.14,18.15]
[1726075989868,3.7816,132.21,132.16,3.7829]
[1726075990174,18.15,132.24,132.14,18.15]
[1726075991072,3.7818,132.21,132.14,18.15]
[1726075991271,18.15,132.24,132.14,18.15]
[1726075991472,18.15,132.24,132.16,18.15]
[1726075991776,25.03511382,132.26,132.16,18.15]
[1726075991980,3.7827,132.18,132.14,3.7835]
[1726075992171,18.15,132.22,132.14,3.7835]
[1726075992473,18.15,132.22,132.13,4.6966]
[1726075992668,18.15,132.22,132.13,8.4803]
[1726075992669,3.7828,132.17,132.13,8.4803]
[1726075994083,1.6034,132.21,132.13,4.6966]
[1726075994293,18.15,132.24,132.14,18.15]
[1726075994624,18.15,132.24,132.13,4.6966]
[1726075994976,18.15,132.22,132.13,4.6966]
[1726075995371,3.7829,132.17,132.14,3.7834]
[1726075995774,3.7829,132.17,132.13,4.6966]
[1726075995973,3.72332976,132.19,132.13,1.5348]
[1726075995974,3.7833,132.16,132.13,1.5348]
[1726075997184,3.7834,132.15,132.11,3.7844]
[1726075997370,18.15,132.18,132.09,3.71878957]
[1726075997880,3.7835,132.15,132.11,3.7843]
[1726075999380,3.7835,132.15,132.12,3.7841]
[1726075999781,3.7835,132.15,132.11,3.7844]
[1726076000680,3.7835,132.15,132.12,3.7842]
[1726076002281,3.7837,132.14,132.11,3.7844]
[1726076002478,3.7837,132.14,132.08,19.6389]
[1726076002881,18.15,132.18,132.08,19.6389]
[1726076003183,18.15,132.18,132.09,3.70524562]
[1726076003385,3.7835,132.15,132.09,3.70524562]
[1726076003989,19.6513,132.19,132.1,18.15]
[1726076004687,3.7828,132.17,132.13,3.7836]
[1726076005983,3.7827,132.18,132.1,18.15]
[1726076006183,22.01722356,132.19,132.1,18.15]
[1726076006887,3.7829,132.17,132.1,18.15]
[1726076007283,22.01722356,132.19,132.08,5.18506228]
[1726076007592,3.7835,132.15,132.11,3.7845]